Cogmind - Beta 13 @@@ ROGUE MODE // 2024.05.06 @ 03:27:44 Player: Exceptionally Mediocre Result: Destroyed by H-55 Commando with Assault Rifle Performance ------------- Evolutions (3) 1500 Regions Visited (6) 1200 Robots Destroyed (106) 530 Value Destroyed (2794) 2794 Prototype IDs (25) 500 Alien Tech Used (0) 0 Bonus (338) 338 TOTAL SCORE: 6862 Bonus ------- High Alert Combat Kills 65 Follower Combat Kills 14 Aligned with FarCom 300 Friendly Fire -41 Cogmind --------- Core Integrity 0/700 Matter 288/300 Energy 100/100 System Corruption 6% Temperature Cool (0) Movement Core (350) Ox6 Location -7/Factory Parts ------- > --- POWER (1) -------- (None) > --- PROPULSION (5) --- (None) > --- UTILITY (5) ------ Large Storage Unit Improved Signal Interpreter Improved Melee Analysis Suite Hacking Suite > --- WEAPON (2) ------- (None) > --- INVENTORY (15) --- Light Nuclear Core Heavy Deuterium Engine Medium Storage Unit High-capacity Storage Unit Improved Melee Analysis Suite Improved Melee Analysis Suite Microactuators Improved Reaction Control System Improved Utility Shielding System Shield System Shield System Shield System Restoration Module Remote Datajack Longsword +1 Peak State ------------ > --- POWER ------------ Micro Fission Core > --- PROPULSION ------- Armored Treads Medium Treads Medium Treads Aluminum Leg Surge Thruster > --- UTILITY ---------- Large Storage Unit Structural Scanner Improved Signal Interpreter Improved Melee Analysis Suite Hacking Suite > --- WEAPON ----------- Axe Axe > --- INVENTORY -------- Light Nuclear Core Light Nuclear Core Medium Storage Unit High-capacity Storage Unit Improved Melee Analysis Suite Improved Melee Analysis Suite Microactuators Improved Reaction Control System Improved Utility Shielding System Shield Relay Coupler [Sentry] System Restoration Module Remote Datajack Hammer Longsword +1 [Rating: 44] Favorites ----------- Power Ion Engine Engine Ion Engine Power Core Light Nuclear Core Propulsion Improved Treads Treads Improved Treads Leg Aluminum Leg Wheel Wheel Hover Unit Gravmag System Flight Unit Surge Thruster Utility Structural Scanner Device Structural Scanner Storage Huge Storage Unit Processor Improved Melee Analysis Suite Hackware Hacking Suite Protection Improved Medium Armor Plating Weapon Assault Rifle Energy Gun Small Laser Ballistic Gun Assault Rifle Ballistic Cannon Assault Cannon Launcher Rocket Launcher Special Weapon Mining Laser Impact Weapon Hammer Slashing Weapon Axe Build | -11 -10 -10 -10 -9 -8 -7 ------- Run | Yrd Mat Min Exi Min Mat Fac Slots Evolved 6 | . . . . . 4 2 Power . | . . . . . . . Propulsion 3 | . . . . . 2 1 Utility 3 | . . . . . 2 1 Weapon . | . . . . . . . Parts Attached 89 | 8 9 . . 1 39 32 Power 12 | 1 1 . . . 3 7 Engine 7 | 1 1 . . . 2 3 Core 5 | . . . . . 1 4 Reactor . | . . . . . . . Propulsion 34 | 2 4 . . . 14 14 Treads 16 | 2 4 . . . 7 3 Leg 8 | . . . . . 4 4 Wheel 2 | . . . . . . 2 Hover 2 | . . . . . . 2 Flight 6 | . . . . . 3 3 Utility 18 | 2 2 . . . 11 3 Device 6 | 1 1 . . . 1 3 Storage 5 | 1 1 . . . 3 . Processor 3 | . . . . . 3 . Hackware 2 | . . . . . 2 . Protection 2 | . . . . . 2 . Artifact . | . . . . . . . Weapon 25 | 3 2 . . 1 11 8 Energy Gun 2 | 1 . . . . 1 . Energy Cannon . | . . . . . . . Ballistic Gun 5 | 2 1 . . . 2 . Ballistic Cannon 1 | . . . . . 1 . Launcher 4 | . . . . 1 3 . Special Weapon 2 | . 1 . . . . 1 Impact Weapon 4 | . . . . . 2 2 Slashing Weapon 7 | . . . . . 2 5 Piercing Weapon . | . . . . . . . Special Melee Weapon . | . . . . . . . Unidentified Prototypes 2 | . . . . . . 2 Parts Lost 51 | . 4 . . . 24 23 Power 7 | . 1 . . . 3 3 Propulsion 29 | . 2 . . . 11 16 Utility 7 | . 1 . . . 5 1 Weapon 8 | . . . . . 5 3 Highest Loss Streak 18 | . 1 . . . 18 7 To Critical Strikes . | . . . . . . . Average Slot Usage (%) 92 | . 96 100 100 100 89 81 Engine 9 | . 14 14 14 14 7 2 Core 1 | . . . . . . 4 Treads 21 | . 28 28 28 28 28 2 Leg 2 | . . . . . . 10 Flight 1 | . . . . . 2 5 Device 11 | . 10 14 14 14 14 6 Storage 11 | . 14 14 14 14 8 7 Processor 4 | . . . . . 2 15 Hackware 2 | . . . . . 1 7 Protection 1 | . . . . . 6 . Ballistic Gun 15 | . 27 28 28 18 7 . Launcher 2 | . . . . 9 3 . Impact Weapon 1 | . . . . . 2 4 Slashing Weapon 2 | . . . . . 1 8 Naked Turns . | . . . . . . . Heaviest Build 103 | 15 90 90 90 92 103 37 Greatest Support 92 | 40 46 46 46 46 92 76 Greatest Overweight (x) 10 | . 2 1 1 1 5 10 Average Overweight (x) 1 | . 1 1 1 1 1 1 Largest Inventory Capacity 25 | 8 25 25 25 25 25 15 Average Capacity 21 | 7 24 25 25 25 22 15 Most Carried 25 | 3 25 25 25 25 25 15 Average Carried 18 | 1 16 25 25 24 21 14 Final Capacity 25 | 8 25 25 25 25 15 15 Final Carried 25 | 3 25 25 25 25 15 15 Class Distribution -------------------- 71% | Mutant 21% | Scavenger-Gladiator 6% | Scavenger-Mutant Dominant Class ---------------- Mutant | -10/Materials Mutant | -10/Mines Mutant | -10/Exiles Mutant | -9/Mines Mutant | -8/Materials Scavenger-Gladiator | -7/Factory Resources | -11 -10 -10 -10 -9 -8 -7 ----------- Run | Yrd Mat Min Exi Min Mat Fac Matter Collected 2318 | 327 605 100 . 203 541 542 Remotely . | . . . . . . . Salvage Created 3509 | 95 1032 . . 147 957 1278 Parts 209 | 6 77 . . 18 46 62 Haulers Intercepted 3 | . 1 . . . 1 1 Recyclers Shooed 2 | 1 . . . . . 1 Parts Field Recycled . | . . . . . . . Retrieved Matter . | . . . . . . . Parts Self-Destructed . | . . . . . . . Prevented . | . . . . . . . Kills | -11 -10 -10 -10 -9 -8 -7 ------- Run | Yrd Mat Min Exi Min Mat Fac Combat Hostiles Destroyed 67 | . 17 . . 8 27 15 Melee 18 | . . . . . 4 14 Guns 23 | . 17 . . . 6 . Cannons 2 | . . . . . 2 . AOE 23 | . . . . 8 15 . Classes Destroyed 15 | 2 6 . . 1 4 2 Worker 8 | . 4 . . . 2 2 Builder 11 | . 5 . . . 4 2 Tunneler 3 | 2 . . . 1 . . Hauler 3 | . 1 . . . 1 1 Recycler 9 | 1 1 . . 1 1 5 Mechanic 1 | . . . . . 1 . Operator 2 | . 1 . . . 1 . Watcher 2 | . 1 . . . 1 . Swarmer 14 | . . . . 8 4 2 Cutter 2 | . . . . . 2 . Grunt 36 | . 17 . . . 15 4 Duelist 2 | . . . . . . 2 Sentry 7 | . . . . . 5 2 Hunter 1 | . . . . . 1 . Programmer 5 | . . . . . . 5 Best Kill Streak 14 | 1 3 . . 5 14 4 Combat Bots Only 10 | . 3 . . 5 10 3 Max Kills in Single Turn 5 | 1 2 . . 4 5 1 Gunslinging 1 | . 1 . . . . . Exploded 4 | . . . . 4 4 . Melee 1 | . . . . . 1 1 Uniques/NPCs Destroyed . | . . . . . . . Combat | -11 -10 -10 -10 -9 -8 -7 -------- Run | Yrd Mat Min Exi Min Mat Fac Hostile Shots Fired 664 | . 105 . . 19 211 329 Missed 203 | . 31 . . 9 56 107 Damage Taken 6406 | . 873 . . 83 2605 2845 Core 1258 | . 155 . . . 401 702 Absorbed by Shields . | . . . . . . . Core Remaining (%) 55 | 100 . . . 38 27 . Volleys Fired 195 | 12 92 . . 11 78 2 Largest 2 | 2 2 . . 2 2 1 Hottest 100 | 40 100 . . 40 64 5 Shots Fired 321 | 24 181 . . 13 101 2 Gun 268 | 24 178 . . 6 60 . Cannon 24 | . . . . . 24 . Launcher 24 | . . . . 7 17 . Special 5 | . 3 . . . . 2 Kinetic 291 | 24 178 . . 6 83 . Thermal 3 | . 3 . . . . . Explosive 24 | . . . . 7 17 . Electromagnetic 1 | . . . . . 1 . Robot Hit Streak 13 | 6 13 . . 2 10 1 Robot Miss Streak 5 | 4 5 . . 3 3 1 Penetration Max . | . . . . . . . Secondary Targets 3 | . 3 . . . . . Max Gunslinging Chain 1 | . 1 . . . . . Shots Hit Robots 277 | 14 105 . . 4 78 76 Core Hits 155 | 4 54 . . 11 63 23 Critical Kills 1 | . . . . . 1 . Critical Parts Destroyed 4 | . 1 . . . 2 1 Critical Strikes 18 | . 1 . . . 4 13 Destroy 3 | . 1 . . . 2 . Smash 2 | . . . . . 1 1 Sever 13 | . . . . . 1 12 Melee Attacks 119 | . . . . . 20 99 Impact 19 | . . . . . 7 12 Slashing 100 | . . . . . 13 87 Piercing . | . . . . . . . Sneak Attacks 20 | . . . . . 4 16 Combat Hostiles . | . . . . . . . Follow-up Attacks 10 | . . . . . . 10 Damage Inflicted 9077 | 180 1382 . . 687 3629 3199 Guns 2101 | 180 1382 . . 39 500 . Cannons 459 | . . . . . 459 . Explosions 2568 | . . . . 648 1920 . Melee 3949 | . . . . . 750 3199 Ramming . | . . . . . . . Kinetic 2538 | 180 1382 . . 39 937 . Thermal . | . . . . . . . Explosive 2568 | . . . . 648 1920 . Electromagnetic 22 | . . . . . 22 . Impact 268 | . . . . . 158 110 Slashing 3681 | . . . . . 592 3089 Piercing . | . . . . . . . Highest Corruption 6 | . . . . . 3 6 Average Corruption 4 | . . . . . 3 4 Corruption Purged . | . . . . . . . Corruption Blocked . | . . . . . . . Effects 38 | . . . . . 4 34 Message Errors 10 | . . . . . 1 9 Matter Fused 7 | . . . . . 2 5 Heat Flow Errors 7 | . . . . . . 7 Energy Discharges 6 | . . . . . . 6 Parts Rejected 1 | . . . . . . 1 Parts Fused 1 | . . . . . . 1 Data Loss (minor) 5 | . . . . . 1 4 Data Loss (major) 1 | . . . . . . 1 Overload Shots . | . . . . . . . Overflow Damage 732 | . . . . 92 268 372 Projectiles 5 | . . . . . 5 . Explosions 108 | . . . . 92 16 . Melee 619 | . . . . . 247 372 Knockbacks 7 | . . . . . 5 2 Impact 3 | . . . . . 1 2 Kinetic 4 | . . . . . 4 . Secondary . | . . . . . . . Self-Inflicted Damage 48 | . . . . 4 44 . Shots 2 | . . . . 1 1 . Rammed . | . . . . . . . Targets Rammed . | . . . . . . . Kicked . | . . . . . . . Crushed . | . . . . . . . Highest Temperature 247 | . 60 . . . 114 247 Average Temperature 48 | . 15 . . . 27 100 Received Heat Transfer 1659 | . 483 . . . 783 393 Siege Activations . | . . . . . . . Robots Corrupted . | . . . . . . . Combat Hostiles . | . . . . . . . Parts Fried 3 | . . . . . 2 1 Impact Corruptions 6 | . . . . . 5 1 Robots Melted . | . . . . . . . Combat Hostiles . | . . . . . . . Parts Melted . | . . . . . . . Heat Transferred . | . . . . . . . Parts Sabotaged . | . . . . . . . Parts Stolen . | . . . . . . . Parts Stripped . | . . . . . . . Power Chain Reactions . | . . . . . . . Alert | -11 -10 -10 -10 -9 -8 -7 ------- Run | Yrd Mat Min Exi Min Mat Fac Peak Influence 476 | 15 212 39 . 185 476 239 Initial 152 | . 9 39 . . 15 152 Average 112 | 7 98 39 . 50 193 121 Maximum Alert Level 2 | . 1 . . . 2 1 Low Security (%) 85 | 100 90 100 . 100 60 85 Level 1 10 | . 9 . . . 18 14 Level 2 4 | . . . . . 21 . Level 3 . | . . . . . . . Level 4 . | . . . . . . . Level 5 . | . . . . . . . High Security . | . . . . . . . Max Security . | . . . . . . . Squads Dispatched 22 | . 5 . . 1 10 6 Investigation 4 | . 1 . . 1 1 1 Extermination 3 | . . . . . . 3 Reinforcement 15 | . 4 . . . 9 2 Assault . | . . . . . . . Garrison . | . . . . . . . Intercept . | . . . . . . . Searches Triggered . | . . . . . . . Construction Impeded 2 | . . . . . 2 . Haulers Reinforced . | . . . . . . . Active Scanning Responses . | . . . . . . . Cargo Convoy Interrupts . | . . . . . . . Stealth | -11 -10 -10 -10 -9 -8 -7 --------- Run | Yrd Mat Min Exi Min Mat Fac Distress Signals 5 | . 2 . . . 2 1 Communications Jammed . | . . . . . . . Distress Signals . | . . . . . . . Times Spotted 104 | . 32 . . 11 34 27 Peak Tracking Total 10 | . 4 . . 5 10 5 Tactical Retreats 7 | . 1 . . 1 2 3 Traps | -11 -10 -10 -10 -9 -8 -7 ------- Run | Yrd Mat Min Exi Min Mat Fac Traps Triggered 1 | . . . . . . 1 Indirectly . | . . . . . . . Trap Hack Attempts . | . . . . . . . Triggered . | . . . . . . . Disarmed . | . . . . . . . Reprogrammed . | . . . . . . . Reused . | . . . . . . . Traps Extracted . | . . . . . . . Installed . | . . . . . . . Triggered . | . . . . . . . Machines | -11 -10 -10 -10 -9 -8 -7 ---------- Run | Yrd Mat Min Exi Min Mat Fac Machines Disabled 4 | . 2 . . . 2 . Max in Single Turn 1 | . 1 . . . 1 . Garrison Access 1 | . . . . . . 1 Machines Repaired . | . . . . . . . Machines Dismantled . | . . . . . . . Machines Sabotaged . | . . . . . . . Overloaded Fab Kills . | . . . . . . . Hacking | -11 -10 -10 -10 -9 -8 -7 --------- Run | Yrd Mat Min Exi Min Mat Fac Machines Accessed 11 | . 3 . 1 1 2 4 Terminals 2 | . 1 . . . . 1 Fabricators . | . . . . . . . Repair Stations . | . . . . . . . Recycling Units 5 | . 2 . . . 1 2 Scanalyzers 1 | . . . . . 1 . Garrison Access 1 | . . . . . . 1 Total Hacks 30 | . 6 . 1 1 12 10 Successful 18 | . 2 . 1 1 9 5 Failed 12 | . 4 . . . 3 5 Catastrophic 3 | . 2 . . . 1 . Database Lockouts . | . . . . . . . Manual 8 | . 2 . 1 . . 5 Terminals 8 | . 3 . . . . 5 Fabricators . | . . . . . . . Repair Stations . | . . . . . . . Recycling Units 8 | . 3 . . . 2 3 Scanalyzers 10 | . . . . . 10 . Garrison Access 2 | . . . . . . 2 Terminal Hacks 2 | . . . 1 1 . . Open Door 1 | . . . . 1 . . Derelict Proto ID Bank 1 | . . . 1 . . . Fabricator Hacks . | . . . . . . . Repair Station Hacks . | . . . . . . . Recycling Unit Hacks 3 | . 1 . . . . 2 Retrieve Components 3 | . 1 . . . . 2 Scanalyzer 9 | . . . . . 9 . Insert Component 5 | . . . . . 5 . Analyze 4 | . . . . . 4 . Garrison Access Hacks 1 | . . . . . . 1 Seal Access 1 | . . . . . . 1 Unauthorized Hacks 3 | . 1 . . . . 2 Terminals 3 | . 1 . . . . 2 Botnet 2 | . 1 . . . . 1 Operators 1 | . . . . . . 1 Fabricators . | . . . . . . . Repair Stations . | . . . . . . . Recycling Units . | . . . . . . . Scanalyzers . | . . . . . . . Garrison Access . | . . . . . . . Data Cores Recovered . | . . . . . . . Used . | . . . . . . . Hacking Detections 6 | . 2 . . . 1 3 Full Trace Events 3 | . 1 . . . 1 1 Feedback Events . | . . . . . . . Feedback Blocked . | . . . . . . . Robot Schematics Acquired . | . . . . . . . Robots Built . | . . . . . . . Authchips . | . . . . . . . Time . | . . . . . . . Total Robot Build Rating . | . . . . . . . Part Schematics Acquired 4 | . . . . . 4 . Parts Built . | . . . . . . . Authchips . | . . . . . . . Time . | . . . . . . . Total Part Build Rating . | . . . . . . . Parts Repaired . | . . . . . . . Time . | . . . . . . . Parts Recycled . | . . . . . . . Recycled Matter . | . . . . . . . Retrieved Matter . | . . . . . . . Retrieved Components 15 | . 3 . . . . 12 Parts Scanalyzed 5 | . . . . . 5 . Part Schematics Acquired 4 | . . . . . 4 . Parts Damaged 1 | . . . . . 1 . Bothacking | -11 -10 -10 -10 -9 -8 -7 ------------ Run | Yrd Mat Min Exi Min Mat Fac Used RIF Installer . | . . . . . . . Robots Hacked 1 | . . . . . . 1 Non-combat . | . . . . . . . Combat 1 | . . . . . . 1 Robot Hacks Applied 1 | . . . . . . 1 parse_system 1 | . . . . . . 1 Relay Couplers Released 4 | . . . . . . 4 Programmers 4 | . . . . . . 4 Fabnet Peak Effective % . | . . . . . . . Robots Rewired . | . . . . . . . Allies Hacked . | . . . . . . . Hacks Repelled . | . . . . . . . Allies | -11 -10 -10 -10 -9 -8 -7 -------- Run | Yrd Mat Min Exi Min Mat Fac Total Allies 2 | . . . . 2 . . Largest Group 2 | . . . . 2 2 . Highest-Rated Group 43 | . . . . 43 43 . Highest-Rated Ally 31 | . . . . 31 31 . Total Orders . | . . . . . . . Ally Attacks 13 | . . . . 2 11 . Total Damage 210 | . . . . 41 169 . Kills 3 | . . . . 2 1 . Allies Corrupted . | . . . . . . . Allies Melted . | . . . . . . . Intel | -11 -10 -10 -10 -9 -8 -7 ------- Run | Yrd Mat Min Exi Min Mat Fac Robot Analysis Total . | . . . . . . . Derelict Logs Recovered 2 | . . . . 2 . . Drone Launches . | . . . . . . . Drone Recoveries . | . . . . . . . Exploration | -11 -10 -10 -10 -9 -8 -7 ------------- Run | Yrd Mat Min Exi Min Mat Fac Turns Passed 6576 | 135 1836 53 516 1157 1218 1661 Spaces Moved 2429 | 55 519 23 215 469 442 706 Core 10 | 3 . . . . 2 5 Treads 1706 | 52 519 23 215 469 311 117 Legs 433 | . . . . . 41 392 Wheels 128 | . . . . . . 128 Hover 6 | . . . . . . 6 Flight 146 | . . . . . 88 58 Fastest Speed 35 | 50 160 240 240 240 35 95 Average Speed 228 | 154 291 240 240 240 205 191 Slowest Speed 755 | 160 320 240 240 240 320 755 Overloaded Moves . | . . . . . . . Propulsion Burnouts . | . . . . . . . Robots Hopped . | . . . . . . . Cave-ins Triggered . | . . . . . . . Exploration Rate (%) 42 | 3 81 10 59 91 29 24 Regions Visited 6 Branch Regions 3 Pre-discovered Areas . | . . . . . . . Known Exits Taken 1 | . . . . . 1 . Unknown Exits Taken 5 | 1 1 1 1 1 . . Scrap Searched 2 | . . . . 2 . . Spaces Dug 19 | . 2 . . . 10 7 Terrain Destroyed 209 | . 2 . . 69 131 7 Melee 9 | . . . . . 2 7 Projectile 5 | . 2 . . . 3 . AOE 195 | . . . . 69 126 . Terrain Rammed . | . . . . . . . Walls Destroyed . | . . . . . . . Machines Disabled . | . . . . . . . Actions | -11 -10 -10 -10 -9 -8 -7 --------- Run | Yrd Mat Min Exi Min Mat Fac Total 2963 | 77 654 22 216 491 626 877 Wait 13 | . 3 . . 1 4 5 Move 2423 | 54 518 22 214 468 441 706 Hop . | . . . . . . . Pick Up 85 | 3 27 . 1 5 27 22 Fast Attach 36 | 7 1 . . . 14 14 Attach 30 | . 3 . . . 18 9 Detach 5 | . . . . . 1 4 Swap 24 | 1 5 . . 1 7 10 Drop 48 | . 5 . 1 5 16 21 Fire 195 | 12 92 . . 11 78 2 Melee 104 | . . . . . 20 84 Ram . | . . . . . . . Kick . | . . . . . . . Crush . | . . . . . . . Escape Stasis . | . . . . . . . Rewire . | . . . . . . . Trap . | . . . . . . . Miscellaneous . | . . . . . . . Route ------- -11/Scrapyard -10/Materials (discovered 4 exits: [*Mat x3] / [*Min]) -10/Mines -10/Exiles -9/Mines (discovered 2 exits: *Mat x2) -8/Materials (discovered 2 exits: *Fac x2) -7/Factory (discovered 1 exit: *Fac) History --------- Turn | Location | Event 32 | -11/Scrapyard | Discovered new exit (range 15) 136 | -11/Scrapyard | Entered Materials 306 | -10/Materials | Build established: Mutant 558 | -10/Materials | Discovered new exit (range 5) 1017 | -10/Materials | Discovered new exit (range 12) 1214 | -10/Materials | Core integrity fell below 50% 1684 | -10/Materials | Discovered new exit (range 8) 1921 | -10/Materials | Discovered new exit (range 16) 1972 | -10/Materials | Entered Mines 2013 | -10/Mines | Deemed a non-threat by the Exiles lab entrance 2013 | -10/Mines | Discovered new exit (range 6) 2025 | -10/Mines | Entered Exiles 2081 | -10/Exiles | Met 8R-AWN 2124 | -10/Exiles | Met EX-HEX 2189 | -10/Exiles | Met EX-BIN 2217 | -10/Exiles | Aligned with FarCom system 2220 | -10/Exiles | Given EX-Vault access code 2275 | -10/Exiles | Opened EX-Vault 2297 | -10/Exiles | Found Longsword +1 2346 | -10/Exiles | Warned to stay clear of 0b10 Research branches 2418 | -10/Exiles | Met EX-DEC 2519 | -10/Exiles | Discovered new exit (range 10) 2541 | -10/Exiles | Left Exiles lab with Longsword +1 2541 | -10/Exiles | Entered Mines 2549 | -9/Mines | Learned Materials terminal intel 2552 | -9/Mines | Met a Derelict shopkeep closing up shop 2630 | -9/Mines | Discovered new exit (range 9) 2755 | -9/Mines | Received a Rocket Launcher from a helpful Derelict 2780 | -9/Mines | Discovered new exit (range 4) 3385 | -9/Mines | Learned 2 Materials zone layouts 3698 | -9/Mines | Entered Materials 3698 | -8/Materials | Accompanied by 2 allies 3698 | -8/Materials | Evolved 4 slots: Propulsion x2, Utility x2 3699 | -8/Materials | Identified exit to Factory 3700 | -8/Materials | Loaded intel: 12 terminal locations 3703 | -8/Materials | Led the pair of lost Derelicts to an unsafe place 4646 | -8/Materials | Destroyed 10 combat bots 4646 | -8/Materials | Discovered exit to Factory (range 15) 4705 | -8/Materials | Core integrity fell below 50% 4735 | -8/Materials | Lost 18 parts (2p9n3u4w) 4806 | -8/Materials | Lost 5 parts (1p2n2u) 4916 | -8/Materials | Entered Factory 4916 | -7/Factory | Evolved 2 slots: Propulsion x1, Utility x1 5058 | -7/Factory | Build established: Scavenger-Mutant 5460 | -7/Factory | Build established: Scavenger-Gladiator 5742 | -7/Factory | Core integrity fell below 50% 5793 | -7/Factory | Lost 7 parts (2p5n) 5972 | -7/Factory | Lost 3 parts (2n1w) 6084 | -7/Factory | Lost 3 parts (3n) 6492 | -7/Factory | Discovered new exit (range 4) 6494 | -7/Factory | Identified exit to Factory 6554 | -7/Factory | Core integrity fell below 20% 6577 | -7/Factory | Destroyed by H-55 Commando with Assault Rifle Last Messages --------------- 06492_ EXIT=FOUND 06494_ EXIT=IDENTIFIED: FACTORY 06496_ System corrupted: Energy discharge (-83). 06534_ L&QG4AS1JLTF6SHM